bitfinex/quotes_BTCUSD_20240911
["timestamp","ask_amount","ask_price","bid_price","bid_amount"]
[1726083475968,2.71276636,57833.0,57832.0,0.0054038]
[1726083476191,2.72076636,57833.0,57832.0,0.0054038]
[1726083476418,2.71676636,57833.0,57832.0,0.0054038]
[1726083476637,2.67875623,57833.0,57832.0,0.0054038]
[1726083476896,3.03257923,57833.0,57832.0,0.0054038]
[1726083477156,3.0299532,57833.0,57832.0,0.00011933]
[1726083477356,3.0219532,57833.0,57832.0,0.00011933]
[1726083477787,3.0319532,57833.0,57832.0,1.99e-06]
[1726083478071,3.0369532,57833.0,57832.0,1.99e-06]
[1726083478303,3.0319532,57833.0,57832.0,1.99e-06]
[1726083478523,3.0459532,57833.0,57832.0,1.99e-06]
[1726083479008,3.1232128,57833.0,57832.0,1.99e-06]
[1726083479221,1.50888466,57815.0,57814.0,0.0037658]
[1726083479470,2.20374018,57815.0,57814.0,0.0037658]
[1726083479700,2.20614677,57815.0,57814.0,0.0037658]
[1726083479958,2.4431347,57815.0,57814.0,0.0037658]
[1726083480181,2.28770819,57815.0,57814.0,0.0037658]
[1726083480424,2.28970819,57815.0,57814.0,0.0037658]
[1726083480892,2.28928301,57815.0,57814.0,0.0037658]
[1726083481124,2.23284546,57815.0,57814.0,0.0037658]
[1726083481382,1.51798546,57815.0,57814.0,0.0037658]
[1726083481645,0.384542,57815.0,57814.0,0.1440658]
[1726083481883,0.70458818,57815.0,57814.0,0.1440658]
[1726083482096,1.19712402,57815.0,57814.0,0.1440658]
[1726083482316,1.08938327,57815.0,57814.0,0.14923574]
[1726083482536,1.11350004,57815.0,57814.0,0.1440658]
[1726083482751,1.02287045,57815.0,57814.0,0.1440658]
[1726083482969,1.09150004,57815.0,57814.0,0.1440658]
[1726083483202,1.01387045,57815.0,57814.0,0.1440658]
[1726083483475,1.01387045,57815.0,57814.0,0.1457058]
[1726083483680,1.06560841,57815.0,57814.0,0.1457058]
[1726083484121,1.06260841,57815.0,57814.0,0.1457058]
[1726083484347,0.69202374,57815.0,57814.0,0.1457058]
[1726083484559,0.72014556,57815.0,57814.0,0.1457058]
[1726083484806,0.74480023,57815.0,57814.0,0.1457058]
[1726083485035,1.08973023,57815.0,57814.0,0.1457058]
[1726083485275,1.08973023,57815.0,57814.0,0.33324438]
[1726083485276,0.0610505,57815.0,57814.0,0.33324438]
[1726083485503,0.0610505,57815.0,57814.0,0.6646098]
[1726083485504,0.05021753,57815.0,57814.0,0.6646098]
[1726083485747,0.05021753,57815.0,57814.0,0.66981607]
[1726083485973,0.05121753,57815.0,57814.0,0.15091207]
[1726083486207,0.22318253,57815.0,57814.0,0.15091207]
[1726083486436,0.05021753,57815.0,57814.0,0.15091207]
[1726083487122,0.05121753,57815.0,57814.0,0.15091207]
[1726083487652,0.05221753,57815.0,57814.0,0.15091207]
[1726083488098,0.20208682,57815.0,57814.0,0.15091207]
[1726083488319,0.20208682,57815.0,57814.0,0.08851207]
[1726083488320,0.9267825,57815.0,57814.0,0.08851207]
[1726083488533,1.3737125,57815.0,57814.0,0.0054058]
[1726083488762,1.3967125,57815.0,57814.0,0.0054058]
[1726083488946,1.45379279,57815.0,57814.0,0.0054058]
[1726083489190,1.45479279,57815.0,57814.0,0.0054058]
[1726083489893,1.50653075,57815.0,57814.0,0.0054058]
[1726083490130,1.8326425,57815.0,57814.0,0.0054058]
[1726083490357,2.66059182,57815.0,57814.0,0.0054058]
[1726083490582,2.66059182,57815.0,57805.0,0.00164]
[1726083490583,1.88705766,57806.0,57805.0,0.00164]
[1726083490822,2.09846492,57806.0,57805.0,0.00164]
[1726083491047,2.08089334,57806.0,57805.0,0.00164]
[1726083491261,2.18556398,57806.0,57805.0,0.00164]
[1726083491709,2.18356398,57806.0,57805.0,0.00164]
[1726083491935,2.19756398,57806.0,57805.0,0.00164]
[1726083492180,2.08089334,57806.0,57805.0,0.00164]
[1726083492399,1.82345141,57806.0,57805.0,0.00164]
[1726083492830,1.74590934,57806.0,57805.0,0.00164]
[1726083493042,1.82345141,57806.0,57805.0,0.00164]
[1726083493263,1.81358101,57806.0,57805.0,0.00164]
[1726083493743,2.87140434,57806.0,57805.0,0.00164]
[1726083493955,2.87140434,57806.0,57799.0,0.001638]
[1726083493956,0.61103,57800.0,57799.0,0.001638]
[1726083494172,2.61531637,57800.0,57799.0,0.001638]
[1726083494394,2.09416671,57800.0,57799.0,0.001638]
[1726083494610,2.09416671,57800.0,57797.0,0.0054038]
[1726083494611,1.672144,57798.0,57797.0,0.0054038]
[1726083494845,2.61288237,57798.0,57797.0,0.0054038]
[1726083495102,2.61124457,57798.0,57797.0,0.0054038]
[1726083495323,2.33611491,57798.0,57797.0,0.0054038]
[1726083496193,2.71447034,57798.0,57797.0,0.0054038]
[1726083496404,2.72847034,57798.0,57797.0,0.0054038]
[1726083496624,2.75560434,57798.0,57797.0,0.0054038]
[1726083497113,2.48047468,57798.0,57797.0,0.0054038]
[1726083497335,2.20714568,57798.0,57797.0,0.0054038]
[1726083498027,1.83811701,57798.0,57797.0,0.0054038]
[1726083498262,1.46496686,57798.0,57797.0,0.0054038]
[1726083498476,1.52496686,57798.0,57797.0,0.0054038]
[1726083498704,1.52696686,57798.0,57797.0,0.0054038]
[1726083499125,1.51296686,57798.0,57797.0,0.0054038]
[1726083500225,1.46396686,57798.0,57797.0,0.0054038]
[1726083500437,1.45096686,57798.0,57797.0,0.0054038]
[1726083500646,1.51096686,57798.0,57797.0,0.0054038]
[1726083500894,1.49038732,57798.0,57797.0,0.0054038]
[1726083501123,1.49704855,57798.0,57797.0,0.0054038]
[1726083501345,1.51004855,57798.0,57797.0,0.0054038]
[1726083501573,1.51104855,57798.0,57797.0,0.0054038]
[1726083501796,2.26307845,57798.0,57797.0,0.0054038]
[1726083502007,0.98014,57794.0,57793.0,0.00164]
[1726083502221,1.45985723,57794.0,57793.0,0.00164]
[1726083502451,1.80591323,57794.0,57793.0,0.00164]
[1726083503825,1.79507509,57794.0,57793.0,0.00164]
[1726083504524,0.49173936,57794.0,57789.0,0.00156]
[1726083504769,0.9182,57790.0,57789.0,0.00156]
[1726083504982,1.04088336,57790.0,57789.0,0.00156]
[1726083505890,1.05172183,57790.0,57789.0,0.00156]
[1726083506332,1.05972183,57790.0,57789.0,0.00156]
[1726083506804,1.44465357,57790.0,57789.0,0.00156]
[1726083507455,1.09857357,57790.0,57789.0,0.00156]
[1726083507679,1.06857357,57790.0,57789.0,0.00156]
[1726083507911,0.18037357,57790.0,57789.0,0.00156]
[1726083508150,0.25341357,57790.0,57789.0,0.14906]
[1726083508384,0.3534849,57790.0,57789.0,0.15392093]
[1726083509462,0.6995649,57790.0,57789.0,0.15392093]
[1726083510135,1.0456449,57790.0,57789.0,0.15392093]
[1726083510434,1.0456449,57790.0,57789.0,0.14906]
[1726083511345,0.6995533,57790.0,57789.0,0.14906]
[1726083511772,1.0456333,57790.0,57789.0,0.15392093]
[1726083511998,1.01205174,57790.0,57789.0,0.15392093]
[1726083512209,1.01847363,57790.0,57789.0,0.14906]
[1726083513784,0.32631363,57790.0,57789.0,0.14906]
[1726083514012,1.01847363,57790.0,57789.0,0.14906]
[1726083514248,1.01847363,57790.0,57789.0,0.15392093]
[1726083514249,1.56512291,57790.0,57789.0,0.15392093]
[1726083514465,1.56512291,57790.0,57789.0,0.14906]
[1726083514891,1.53156616,57790.0,57789.0,0.14906]
[1726083515113,1.56513729,57790.0,57789.0,0.14906]
[1726083515338,1.21905729,57790.0,57789.0,0.14906]
[1726083515570,0.69954124,57790.0,57789.0,0.14906]
[1726083516048,1.04562124,57790.0,57789.0,0.14906]
[1726083516256,0.69954124,57790.0,57789.0,0.14906]
[1726083516680,1.24619052,57790.0,57789.0,0.14906]
[1726083516889,1.26919052,57790.0,57789.0,0.14906]
[1726083517110,1.66827052,57790.0,57789.0,0.00156]
[1726083517332,1.64727052,57790.0,57789.0,0.00156]
[1726083517767,1.64527052,57790.0,57789.0,0.00156]
[1726083518888,1.61169939,57790.0,57789.0,0.14186]
[1726083519079,1.64531414,57790.0,57789.0,0.14186]
[1726083519380,1.64531414,57790.0,57789.0,0.06346]
[1726083519609,1.64531414,57790.0,57789.0,0.00156]
[1726083520500,1.64731414,57790.0,57789.0,0.00156]
[1726083521167,1.64813514,57790.0,57789.0,0.00156]
[1726083521637,1.64813514,57790.0,57789.0,4.869e-05]
[1726083521638,2.6080267,57790.0,57789.0,4.869e-05]
[1726083521873,2.6080267,57790.0,57780.0,0.0037658]
[1726083521874,0.032,57781.0,57780.0,0.0037658]
[1726083522123,1.81750003,57781.0,57780.0,0.0037658]
[1726083522349,1.8510781,57781.0,57780.0,0.0037658]
[1726083522558,2.00275037,57781.0,57780.0,0.0037658]
[1726083523006,2.00554328,57781.0,57780.0,0.0037658]
[1726083523231,2.00274289,57781.0,57780.0,0.0037658]
[1726083523450,2.08304026,57781.0,57780.0,0.0037658]
[1726083523660,2.15496925,57781.0,57780.0,0.0037658]
[1726083523880,2.14412869,57781.0,57780.0,0.0037658]
[1726083524546,2.15612869,57781.0,57780.0,0.0037658]
[1726083524990,2.26364212,57781.0,57780.0,0.0037658]
[1726083525203,2.29069885,57781.0,57780.0,0.0037658]
[1726083525426,2.37573934,57781.0,57780.0,0.0037658]
[1726083525847,2.17788926,57781.0,57780.0,0.0037658]
[1726083526287,2.17988926,57781.0,57780.0,0.0037658]
[1726083526514,2.17788926,57781.0,57780.0,0.0037658]
[1726083526730,2.10036616,57781.0,57780.0,0.0037658]
[1726083526941,2.16488926,57781.0,57780.0,0.1460658]
[1726083527146,2.08736616,57781.0,57780.0,0.0037658]
[1726083527350,2.10136616,57781.0,57780.0,0.0037658]
[1726083527597,2.18088926,57781.0,57780.0,0.0037658]
[1726083527820,2.16688926,57781.0,57780.0,0.0037658]
[1726083528033,2.10336616,57781.0,57780.0,0.0037658]
[1726083528254,1.75523216,57781.0,57780.0,0.0037658]
[1726083528470,1.81010023,57781.0,57780.0,0.0037658]
[1726083528681,1.81876599,57781.0,57780.0,0.0037658]
[1726083528906,1.75424539,57781.0,57780.0,0.0037658]
[1726083529132,1.83176599,57781.0,57780.0,0.0037658]
[1726083529362,1.8059327,57781.0,57780.0,0.0037658]
[1726083529818,1.63119671,57781.0,57780.0,0.0037658]
[1726083530033,1.83176599,57781.0,57780.0,0.0037658]
[1726083531162,2.04290789,57781.0,57780.0,0.0037658]
[1726083532062,2.04283132,57781.0,57780.0,0.0037658]
[1726083532357,2.01568961,57781.0,57780.0,0.0037658]
[1726083532996,2.01568961,57781.0,57780.0,0.0054078]
[1726083533202,2.04147388,57781.0,57780.0,0.0054078]
[1726083533416,1.86840688,57781.0,57780.0,0.0054078]
[1726083533642,2.04147388,57781.0,57780.0,0.0054078]
[1726083533862,1.72702711,57781.0,57780.0,0.0054078]
[1726083534079,2.04176469,57781.0,57780.0,0.0054078]
[1726083534283,1.9124245,57781.0,57780.0,0.0054078]
[1726083534515,1.8524245,57781.0,57780.0,0.0054078]
[1726083534736,1.30178181,57781.0,57780.0,0.0054078]
[1726083534953,0.74436514,57781.0,57780.0,0.1420078]
[1726083535175,0.39823114,57781.0,57780.0,0.17844038]
[1726083535411,0.03558919,57781.0,57780.0,0.1420078]
[1726083535646,0.08970044,57781.0,57780.0,0.6612178]
[1726083535871,0.04960251,57781.0,57780.0,1.09846021]
[1726083537198,0.05560251,57781.0,57780.0,0.6661415]
[1726083537434,0.03313745,57781.0,57780.0,0.6661415]
[1726083537665,0.02713745,57781.0,57780.0,0.6661415]
[1726083538087,0.02813745,57781.0,57780.0,0.6661415]
[1726083538304,0.05071385,57781.0,57780.0,0.74311232]
[1726083539000,0.05071385,57781.0,57780.0,0.6661415]
[1726083539238,0.05071385,57781.0,57780.0,0.1469315]
[1726083539457,0.05071385,57781.0,57780.0,0.3200015]
[1726083540541,0.05071385,57781.0,57780.0,0.1469315]
[1726083540755,0.92037587,57781.0,57780.0,0.1469315]
[1726083540979,0.93904885,57781.0,57780.0,0.1420078]
[1726083541193,1.36292918,57781.0,57780.0,0.1420078]
[1726083541397,1.64518076,57781.0,57780.0,0.1420078]
[1726083541817,1.6731887,57781.0,57780.0,0.1420078]
[1726083542030,1.66260561,57781.0,57780.0,0.1420078]
[1726083542247,1.53302839,57781.0,57780.0,0.1420078]
[1726083543529,0.18656608,57781.0,57780.0,0.15620858]
[1726083543735,0.59697194,57781.0,57780.0,0.14689152]
[1726083543944,0.57204752,57781.0,57780.0,0.1420078]
[1726083544381,0.57104752,57781.0,57780.0,0.1420078]
[1726083544590,0.07898306,57781.0,57780.0,0.1420078]
[1726083544797,0.03313654,57781.0,57780.0,0.14689152]
[1726083545214,0.02713654,57781.0,57780.0,0.14689152]
[1726083545444,0.02713654,57781.0,57780.0,0.31996152]
[1726083545659,0.03213654,57781.0,57780.0,0.14689152]
[1726083545869,0.08398306,57781.0,57780.0,0.14689152]
[1726083546083,0.08398264,57781.0,57780.0,0.14689152]
[1726083546302,0.08398264,57781.0,57780.0,1.07885307]
[1726083546303,0.05562498,57781.0,57780.0,1.07885307]
[1726083546607,0.02848844,57781.0,57780.0,1.42499307]
[1726083547059,0.02348844,57781.0,57780.0,1.42499307]
[1726083547500,0.000821,57781.0,57780.0,1.42499307]
[1726083548159,0.02460284,57781.0,57780.0,1.42499307]
[1726083548383,0.001821,57781.0,57780.0,1.42499307]
[1726083548603,0.000821,57789.0,57788.0,1.00553]
[1726083548825,0.02368861,57789.0,57788.0,1.00553]
[1726083549042,0.03452547,57789.0,57788.0,1.35647417]
[1726083549255,0.03452547,57789.0,57788.0,1.01038217]
[1726083549689,0.03452547,57789.0,57788.0,0.66429017]
[1726083549905,0.03452547,57789.0,57788.0,0.31819817]
[1726083550126,0.03452547,57789.0,57788.0,0.66429017]
[1726083550360,0.03552547,57789.0,57788.0,0.14515217]
[1726083550589,0.20856847,57789.0,57788.0,0.14515217]
[1726083550865,0.20856847,57789.0,57788.0,0.1403]
[1726083550866,0.55465447,57789.0,57788.0,0.1403]
[1726083551091,0.55465447,57789.0,57783.0,0.0794]
[1726083551092,0.519174,57784.0,57783.0,0.0794]
[1726083551317,0.89899447,57784.0,57783.0,0.0794]
[1726083551535,0.95081034,57784.0,57783.0,0.0794]
[1726083551795,0.95081034,57784.0,57781.0,0.0639]
[1726083551796,0.519192,57782.0,57781.0,0.0639]
[1726083552011,0.89902447,57782.0,57781.0,0.0639]
[1726083552655,0.9767591,57782.0,57781.0,0.0639]
[1726083552874,0.865335,57781.0,57780.0,0.0054078]
[1726083553093,0.91715837,57781.0,57780.0,0.0054078]
[1726083553580,0.95080241,57781.0,57780.0,0.0718078]
[1726083553813,0.25853459,57781.0,57780.0,0.0718078]
[1726083554041,0.60466859,57781.0,57780.0,0.07665401]
[1726083554509,0.60466859,57781.0,57780.0,0.0718078]
[1726083554740,0.6318051,57781.0,57780.0,0.0718078]
[1726083554977,0.06078073,57781.0,57780.0,0.25999858]
[1726083555218,0.06278073,57781.0,57780.0,0.26487247]
[1726083555933,0.06278073,57781.0,57780.0,0.61101247]
[1726083556164,0.06278073,57781.0,57780.0,0.32545169]
[1726083557047,0.06078073,57781.0,57780.0,0.67159169]
[1726083557717,0.06178073,57781.0,57780.0,0.32545169]
[1726083558156,0.06078073,57781.0,57780.0,0.32545169]
[1726083558381,0.23384773,57781.0,57780.0,0.15238169]
[1726083558605,0.23384773,57781.0,57780.0,0.1475078]
[1726083558606,0.57998173,57781.0,57780.0,0.1475078]
[1726083558822,0.57998173,57781.0,57780.0,0.0054078]
[1726083558823,0.9779391,57781.0,57780.0,0.0054078]
[1726083559290,1.3470731,57781.0,57780.0,0.0054078]
[1726083559515,1.78261651,57781.0,57780.0,0.0054078]
[1726083559752,1.78261651,57781.0,57780.0,0.1496078]
[1726083559753,1.26920789,57781.0,57780.0,0.1496078]
[1726083559979,0.6520676,57781.0,57780.0,0.1496078]
[1726083560201,0.35307728,57781.0,57780.0,0.1496078]
[1726083560427,0.11444123,57781.0,57780.0,0.67367978]
[1726083560649,0.06160173,57781.0,57780.0,0.67367978]
[1726083561323,0.06160173,57781.0,57780.0,0.32753978]
[1726083561544,0.11443955,57781.0,57780.0,0.32753978]
[1726083562026,0.11443955,57781.0,57780.0,0.67367978]
[1726083562257,0.08730304,57781.0,57780.0,0.67367978]
[1726083562933,0.08630304,57781.0,57780.0,0.67367978]
[1726083563169,0.03546522,57781.0,57780.0,0.67367978]
[1726083563407,0.001821,57781.0,57780.0,0.67367978]
[1726083563650,0.03552103,57781.0,57780.0,0.67367978]
[1726083564773,0.03552103,57781.0,57780.0,0.32753978]
[1726083565439,0.03552103,57781.0,57780.0,0.67367978]
[1726083565903,0.03552103,57781.0,57780.0,1.46794336]
[1726083566150,0.02468219,57781.0,57780.0,1.66851264]
[1726083566367,0.02468219,57781.0,57780.0,2.01465264]
[1726083566855,0.001821,57781.0,57780.0,2.01465264]
[1726083567070,0.02385324,57781.0,57780.0,2.01465264]
[1726083567287,0.02385324,57781.0,57780.0,1.66851264]
[1726083567512,0.02485324,57781.0,57780.0,1.66851264]
[1726083568341,0.001821,57781.0,57780.0,1.66851264]
[1726083568760,0.02486161,57781.0,57780.0,1.66851264]
[1726083568978,0.02386161,57781.0,57780.0,1.66851264]
[1726083569410,0.02486161,57781.0,57780.0,1.67451264]
[1726083569861,0.02386161,57781.0,57780.0,1.66851264]
[1726083570102,0.02486161,57781.0,57780.0,1.67951264]
[1726083570339,0.02484345,57781.0,57780.0,1.67951264]
[1726083570555,0.02384477,57781.0,57780.0,1.66851264]
[1726083571013,0.02484477,57781.0,57780.0,1.67951264]
[1726083571229,0.02484477,57781.0,57780.0,1.57752906]
[1726083571444,0.02484477,57781.0,57780.0,1.37695978]
[1726083572102,0.001821,57781.0,57780.0,1.37695978]
[1726083579262,0.02895313,57781.0,57780.0,1.37695978]
[1726083579713,0.02895313,57781.0,57780.0,1.03081978]
[1726083579918,0.02895313,57781.0,57780.0,0.68467978]
[1726083579919,0.05172354,57781.0,57780.0,0.68467978]
[1726083580149,0.05172354,57781.0,57780.0,0.16546978]
[1726083580362,0.06256179,57781.0,57780.0,0.02126978]
[1726083580575,0.63358716,57781.0,57780.0,0.02126978]
[1726083580785,0.58176279,57781.0,57780.0,0.02126978]
[1726083581012,0.6486611,57781.0,57780.0,0.0164078]
[1726083581234,1.10438798,57781.0,57780.0,0.02124026]
[1726083581499,1.10438798,57781.0,57780.0,0.0054078]
[1726083581500,1.57252198,57781.0,57780.0,0.0054078]
[1726083581713,1.6270017,57781.0,57780.0,0.0054078]
[1726083581918,1.6280017,57781.0,57780.0,0.0104078]
[1726083582188,1.60086957,57781.0,57780.0,0.0104078]
[1726083582404,1.60086957,57781.0,57780.0,0.0054078]
[1726083582405,2.34206697,57781.0,57780.0,0.0054078]
[1726083582620,2.34306697,57781.0,57780.0,0.0054078]
[1726083582887,2.74920097,57781.0,57780.0,0.0054078]
[1726083583097,2.79045527,57781.0,57780.0,0.00014954]
[1726083583590,2.79045527,57781.0,57774.0,0.001638]
[1726083583591,2.018935,57775.0,57774.0,0.001638]
[1726083583784,2.018935,57775.0,57770.0,0.0032903]
[1726083583785,0.83486028,57771.0,57770.0,0.0032903]
[1726083584020,2.23199125,57771.0,57770.0,0.0032903]
[1726083584235,2.57818525,57771.0,57770.0,0.0032903]
[1726083584680,2.62043955,57771.0,57770.0,0.0032903]
[1726083584892,2.62066914,57771.0,57770.0,0.0032903]
[1726083585112,2.64781703,57771.0,57770.0,0.0032903]
[1726083585562,2.67028644,57771.0,57770.0,0.0032903]
[1726083585766,2.68428644,57771.0,57770.0,0.0032903]
[1726083586192,2.69645198,57771.0,57770.0,0.0032903]
[1726083586404,2.68245198,57771.0,57770.0,0.0032903]
[1726083586607,2.69645198,57771.0,57770.0,0.0032903]
[1726083587020,1.650062,57764.0,57763.0,0.0054058]
[1726083587271,2.28493013,57764.0,57763.0,0.0054058]
[1726083587666,2.31208056,57764.0,57763.0,0.0054058]
[1726083588129,1.650251,57757.0,57751.0,0.0001]
[1726083588363,2.08347239,57757.0,57751.0,0.0001]
[1726083588583,2.18347239,57757.0,57751.0,0.0001]
[1726083589005,2.21062489,57757.0,57751.0,0.0001]
[1726083589742,1.86234689,57757.0,57751.0,0.0001]
[1726083590002,1.56594097,57757.0,57751.0,0.0001]
[1726083590214,1.88809262,57757.0,57751.0,0.0001]
[1726083590431,1.77865668,57757.0,57751.0,0.0001]
[1726083591278,1.71649703,57757.0,57751.0,0.0001]
[1726083591495,1.73049703,57757.0,57751.0,0.0001]
[1726083591723,1.47349978,57757.0,57751.0,0.0001]
[1726083591960,1.66006906,57757.0,57751.0,0.0001]
[1726083592466,1.72566008,57757.0,57751.0,0.0001]
[1726083593097,1.324994,57756.0,57755.0,6.94e-05]
[1726083593351,1.44733243,57756.0,57755.0,6.94e-05]
[1726083594663,1.46133243,57756.0,57755.0,6.94e-05]
[1726083594877,1.46113531,57756.0,57755.0,6.94e-05]
[1726083595102,1.48828783,57756.0,57755.0,6.94e-05]
[1726083595318,1.48829952,57756.0,57755.0,6.94e-05]
[1726083596454,1.515416,57756.0,57755.0,6.94e-05]
[1726083596676,1.42829952,57756.0,57755.0,6.94e-05]
[1726083598226,1.42835765,57756.0,57755.0,6.94e-05]
[1726083600218,1.39835765,57756.0,57755.0,6.94e-05]
[1726083600457,0.06336365,57756.0,57755.0,0.1451694]
[1726083600716,0.04115252,57756.0,57755.0,1.03047045]
[1726083600969,0.04115252,57756.0,57755.0,1.37676045]
[1726083601211,0.014,57756.0,57755.0,1.37676045]
[1726083601443,0.02714598,57762.0,57761.0,0.254427]
[1726083601682,0.02714598,57762.0,57761.0,0.1413]
[1726083601905,0.02714598,57762.0,57761.0,0.14634404]
[1726083602392,0.173118,57764.0,57761.0,0.14634404]
[1726083602655,0.01209632,57765.0,57761.0,0.14634404]
[1726083602911,0.173124,57762.0,57761.0,0.14634404]
[1726083603124,0.519372,57762.0,57761.0,0.14634404]
[1726083603376,1.211868,57762.0,57761.0,0.00504404]
[1726083603601,1.23418467,57762.0,57761.0,0.00504404]
[1726083603826,0.519408,57758.0,57757.0,0.065]
[1726083604049,0.86568,57758.0,57757.0,0.065]
[1726083604266,0.519408,57758.0,57757.0,0.065]
[1726083604744,0.173136,57758.0,57757.0,0.065]
[1726083605199,0.173136,57758.0,57757.0,0.07004404]
[1726083605427,0.54170873,57758.0,57757.0,0.07004404]
[1726083605650,0.524408,57758.0,57757.0,0.07004404]
[1726083606096,0.005,57758.0,57757.0,0.07004404]
[1726083606314,0.02730655,57758.0,57757.0,0.24318304]
[1726083606544,0.005,57758.0,57757.0,0.67256104]
[1726083606761,0.005,57758.0,57757.0,1.01883904]
[1726083607196,0.005,57758.0,57757.0,0.67256104]
[1726083607424,0.02714614,57762.0,57757.0,0.67256104]
[1726083607425,0.02714614,57762.0,57761.0,0.173127]
[1726083607654,0.02714614,57762.0,57759.0,0.16913]
[1726083607898,0.02714614,57762.0,57761.0,0.06961056]
[1726083608118,0.04949416,57762.0,57761.0,0.0646]
[1726083608382,0.22261816,57762.0,57761.0,0.06961056]
[1726083608608,0.56886616,57762.0,57761.0,0.06661056]
[1726083608837,0.91511416,57762.0,57761.0,0.00501056]
[1726083609342,0.91511416,57762.0,57757.0,0.0831]
[1726083609343,0.173136,57758.0,57757.0,0.0831]
[1726083609565,0.19548402,57758.0,57757.0,0.0831]
[1726083609787,0.19548402,57758.0,57757.0,0.08811056]
[1726083610254,0.88802802,57758.0,57757.0,0.08811056]
[1726083610485,0.86571,57756.0,57755.0,6.94e-05]
[1726083610710,0.88805802,57756.0,57755.0,6.94e-05]
[1726083611181,0.89285868,57756.0,57755.0,6.94e-05]
[1726083611406,0.56877203,57756.0,57755.0,6.94e-05]
[1726083611637,0.59588133,57756.0,57755.0,0.0631694]
[1726083612089,0.91501665,57756.0,57755.0,0.0621694]
[1726083612325,0.91501665,57756.0,57755.0,0.06717996]
[1726083612326,0.54162335,57756.0,57755.0,0.06717996]
[1726083612541,0.54262335,57756.0,57755.0,0.06717996]
[1726083612800,0.88890735,57756.0,57755.0,0.06717996]
[1726083613027,0.88890735,57756.0,57755.0,0.0621694]
[1726083613028,0.54262335,57756.0,57755.0,0.0621694]
[1726083613261,0.19633935,57756.0,57755.0,0.0621694]
[1726083613472,0.54262335,57756.0,57755.0,0.06717996]
[1726083613685,0.54262335,57756.0,57755.0,0.0621694]
[1726083613889,0.54262335,57756.0,57755.0,0.06717996]
[1726083614137,0.19633935,57756.0,57755.0,0.06717996]
[1726083614353,0.54162335,57756.0,57755.0,0.06717996]
[1726083614568,0.54262335,57756.0,57755.0,0.06717996]
[1726083614783,0.520426,57756.0,57755.0,0.06717996]
[1726083615042,0.54158006,57756.0,57755.0,0.06717996]
[1726083615271,0.54158688,57756.0,57755.0,0.06717996]
[1726083615533,0.54158688,57756.0,57751.0,0.0001]
[1726083615534,0.611462,57752.0,57751.0,0.0001]
[1726083615755,1.95060505,57752.0,57751.0,0.0001]
[1726083616018,2.42291305,57752.0,57751.0,0.0001]
[1726083616263,2.16968927,57752.0,57751.0,0.0001]
[1726083616480,2.07660505,57752.0,57751.0,0.0001]
[1726083616937,1.67229705,57752.0,57751.0,0.0001]
[1726083617155,1.04241977,57752.0,57751.0,0.0642]
[1726083617366,0.98793088,57752.0,57751.0,0.0642]
[1726083617588,1.34423888,57752.0,57751.0,0.0011]
[1726083617802,1.35610105,57752.0,57751.0,0.0011]
[1726083618071,1.41059826,57752.0,57751.0,0.0011]
[1726083618286,1.40054346,57752.0,57751.0,0.0001]
[1726083618506,1.41154346,57752.0,57751.0,0.0011]
[1726083618938,1.42354346,57752.0,57751.0,0.0001]
[1726083619157,1.43054346,57752.0,57751.0,0.0011]
[1726083620219,1.40319885,57752.0,57751.0,0.0011]
[1726083620656,1.40319885,57752.0,57751.0,0.0001]
[1726083620657,1.39619885,57752.0,57751.0,0.0001]
[1726083621342,1.45669553,57752.0,57751.0,0.0011]
[1726083621566,1.05589085,57752.0,57751.0,0.0011]
[1726083621784,1.02873825,57752.0,57751.0,0.0011]
[1726083622043,1.36904625,57752.0,57751.0,0.0001]
[1726083622260,1.00673825,57752.0,57751.0,0.0011]
[1726083622928,1.00673825,57752.0,57751.0,0.00274]
[1726083623192,0.66043025,57752.0,57751.0,0.00274]
[1726083623444,0.66043025,57752.0,57751.0,0.07994]
[1726083623445,0.89487608,57752.0,57751.0,0.07994]
[1726083623663,0.88787608,57752.0,57751.0,0.07894]
[1726083623886,0.89387608,57752.0,57751.0,0.07994]
[1726083624569,0.88787608,57752.0,57751.0,0.07894]
[1726083624825,0.88887608,57752.0,57751.0,0.08371489]
[1726083625027,0.22341083,57752.0,57751.0,0.14404]
[1726083625240,0.56971883,57752.0,57751.0,0.14881489]
[1726083625692,0.56971883,57752.0,57751.0,0.14404]
[1726083625910,0.56971883,57752.0,57751.0,0.14881489]
[1726083626337,0.62142781,57752.0,57751.0,0.14881489]
[1726083626554,0.62142781,57752.0,57751.0,0.14404]
[1726083627266,0.62042781,57752.0,57751.0,0.14404]
[1726083627498,0.64728231,57752.0,57751.0,0.14404]
[1726083627931,0.91602683,57752.0,57751.0,0.14404]
[1726083628416,1.18596701,57752.0,57751.0,0.14404]
[1726083628625,1.20720248,57752.0,57751.0,0.14404]
[1726083628848,1.20720248,57752.0,57751.0,0.14504]
[1726083629506,1.10378451,57752.0,57751.0,0.14504]
[1726083629734,1.10378451,57752.0,57751.0,0.00274]
[1726083629735,1.50309251,57752.0,57751.0,0.00274]
[1726083629958,2.12152645,57752.0,57751.0,0.00274]
[1726083630180,2.46783445,57752.0,57751.0,5.329e-05]
[1726083630410,2.50935258,57752.0,57751.0,5.329e-05]
[1726083630631,2.68587041,57752.0,57751.0,5.329e-05]
[1726083630893,2.68587041,57752.0,57747.0,0.00164]
[1726083630894,1.235162,57748.0,57747.0,0.00164]
[1726083631173,2.01851244,57748.0,57747.0,0.00164]
[1726083631393,1.75609167,57748.0,57747.0,0.00164]
[1726083631893,1.60052526,57748.0,57747.0,0.00164]
[1726083632409,1.54602576,57748.0,57747.0,0.00164]
[1726083632863,1.54516993,57748.0,57747.0,0.00164]
[1726083633088,1.52216993,57748.0,57747.0,0.00164]
[1726083633546,1.52816993,57748.0,57747.0,0.00164]
[1726083634019,0.83550593,57748.0,57747.0,0.14474]
[1726083634238,0.93918307,57748.0,57747.0,0.14474]
[1726083634459,0.96633794,57748.0,57747.0,0.14474]
[1726083634720,0.5103288,57748.0,57747.0,0.14474]
[1726083634944,0.8616608,57748.0,57747.0,0.15363003]
[1726083635162,0.96533794,57748.0,57747.0,0.15363003]
[1726083635384,0.64492576,57748.0,57747.0,0.15363003]
[1726083635827,0.51522491,57748.0,57747.0,0.15363003]
[1726083636070,0.34205891,57748.0,57747.0,0.15363003]
[1726083636292,0.12704767,57748.0,57747.0,0.15363003]
[1726083636514,0.04928645,57748.0,57747.0,0.15363003]
[1726083636736,0.05028645,57748.0,57747.0,0.15363003]
[1726083636957,0.22345245,57748.0,57747.0,0.15363003]
[1726083637188,0.64754567,57748.0,57747.0,0.15363003]
[1726083637408,0.86167663,57748.0,57747.0,0.15363003]
[1726083637635,1.20800863,57748.0,57747.0,0.01053003]
[1726083637842,1.22710295,57748.0,57747.0,0.00164]
[1726083638305,1.35670832,57748.0,57747.0,0.00164]
[1726083638544,1.22710295,57748.0,57747.0,0.00164]
[1726083638811,1.35663024,57748.0,57747.0,0.00164]